Cogmind - Beta 11.1 @@@ ROGUE MODE // 2022.12.17 @ 17:00:51 Player: L1l7 Result: Destroyed by Y-45 Defender with Beam Rifle Performance ------------- Evolutions (2) 1000 Regions Visited (5) 1000 Robots Destroyed (7) 35 Value Destroyed (65) 65 Prototype IDs (2) 40 Alien Tech Used (0) 0 Bonus (700) 700 TOTAL SCORE: 2840 Bonus ------- Entered Garrisons 200 Used RIF Installer 500 Cogmind --------- Core Integrity 0/550 Matter 300/300 Energy 99/100 System Corruption 0% Temperature Cool (9) Movement Core (50) Location -8/Materials Parts ------- > --- POWER (1) -------- (None) > --- PROPULSION (4) --- (None) > --- UTILITY (4) ------ (None) > --- WEAPON (2) ------- Hammer > --- INVENTORY (5) ---- Light Ion Engine Light Ion Engine Nuclear Core Improved Terrain Scanner Peak State ------------ > --- POWER ------------ Improved Ion Engine > --- PROPULSION ------- Flight Unit Flight Unit Flight Unit Flight Unit > --- UTILITY ---------- Sensor Array Terrain Scanner Seismic Detector > --- WEAPON ----------- Light Assault Rifle Light Assault Rifle > --- INVENTORY -------- Light Ion Engine Light Ion Engine Wheel [Rating: 11] Favorites ----------- Power Light Ion Engine Engine Light Ion Engine Propulsion Flight Unit Wheel Wheel Flight Unit Flight Unit Utility Seismic Detector Device Seismic Detector Weapon Light Assault Rifle Energy Gun EM Pulse Gun Ballistic Gun Light Assault Rifle Impact Weapon Hammer Build | -11 -10 -9 -8 -8 -8 ------- Run | Scr Mat Mat Mat Gar Mat Slots Evolved 4 | . . 2 2 . . Power . | . . . . . . Propulsion 2 | . . 1 1 . . Utility 2 | . . 1 1 . . Weapon . | . . . . . . Parts Attached 18 | 6 5 3 2 1 1 Power 2 | . 1 . 1 . . Engine 2 | . 1 . 1 . . Core . | . . . . . . Reactor . | . . . . . . Propulsion 7 | 2 2 1 1 1 . Treads . | . . . . . . Leg . | . . . . . . Wheel 2 | 2 . . . . . Hover . | . . . . . . Flight 5 | . 2 1 1 1 . Utility 3 | 1 . 2 . . . Device 3 | 1 . 2 . . . Storage . | . . . . . . Processor . | . . . . . . Hackware . | . . . . . . Protection . | . . . . . . Artifact . | . . . . . . Weapon 6 | 3 2 . . . 1 Energy Gun 2 | 2 . . . . . Energy Cannon . | . . . . . . Ballistic Gun 3 | 1 2 . . . . Ballistic Cannon . | . . . . . . Launcher . | . . . . . . Special Weapon . | . . . . . . Impact Weapon 1 | . . . . . 1 Slashing Weapon . | . . . . . . Piercing Weapon . | . . . . . . Special Melee Weapon . | . . . . . . Unidentified Prototypes . | . . . . . . Corrupted Parts 1 | 1 . . . . . System Corruption 1 | 1 . . . . . Parts Lost 8 | . . . . 8 . Power . | . . . . . . Propulsion 4 | . . . . 4 . Utility 3 | . . . . 3 . Weapon 1 | . . . . 1 . Highest Loss Streak 8 | . . . . 8 . To Critical Strikes . | . . . . . . Average Slot Usage (%) 67 | . 74 99 90 29 4 Engine 6 | . 3 11 9 2 . Wheel 2 | . 13 . . . . Flight 20 | . 14 32 36 9 . Device 19 | . 14 32 27 9 . Energy Gun 1 | . 7 . . . . Ballistic Gun 15 | . 20 22 18 8 . Naked Turns 131 | . . . . 40 91 Heaviest Build 12 | 5 6 8 12 12 2 Greatest Support 20 | 20 20 12 16 16 3 Greatest Overweight (x) 1 | . . . . 1 . Average Overweight (x) . | . . . . . . Largest Inventory Capacity 5 | 5 5 5 5 5 5 Average Capacity 5 | 5 5 5 5 5 5 Most Carried 5 | 3 5 4 4 5 5 Average Carried 3 | 1 3 3 3 4 4 Final Capacity 5 | 5 5 5 5 5 5 Final Carried 5 | 2 5 4 4 4 4 Class Distribution -------------------- 46% | Scavenger-Mutant 42% | Mutant 11% | Scavenger-Sprinter Dominant Class ---------------- Scavenger-Mutant | -10/Materials Scavenger-Mutant | -9/Materials Scavenger-Sprinter | -8/Materials Mutant | -8/Garrison Mutant | -8/Materials Resources | -11 -10 -9 -8 -8 -8 ----------- Run | Scr Mat Mat Mat Gar Mat Matter Collected 427 | 252 31 . 134 . 10 Remotely . | . . . . . . Salvage Created 120 | 39 69 . . . 12 Parts 17 | 8 9 . . . . Haulers Intercepted . | . . . . . . Recyclers Shooed 1 | 1 . . . . . Parts Field Recycled . | . . . . . . Retrieved Matter . | . . . . . . Parts Self-Destructed . | . . . . . . Prevented . | . . . . . . Kills | -11 -10 -9 -8 -8 -8 ------- Run | Scr Mat Mat Mat Gar Mat Combat Hostiles Destroyed 3 | . 3 . . . . Guns 3 | . 3 . . . . Classes Destroyed 4 | 1 2 . . . 1 Builder 1 | . . . . . 1 Tunneler 2 | 2 . . . . . Watcher 1 | . 1 . . . . Swarmer 3 | . 3 . . . . Best Kill Streak 3 | 1 3 . . . 1 Combat Bots Only 3 | . 3 . . . . Max Kills in Single Turn 1 | 1 1 . . . 1 Gunslinging . | . . . . . . Exploded . | . . . . . . Melee . | . . . . . . Uniques/NPCs Destroyed . | . . . . . . Combat | -11 -10 -9 -8 -8 -8 -------- Run | Scr Mat Mat Mat Gar Mat Damage Taken 969 | . 107 45 51 671 95 Core 607 | . 38 13 14 447 95 Absorbed by Shields 52 | . . . . 52 . Core Remaining (%) 93 | 100 84 96 . . . Volleys Fired 27 | 5 16 2 4 . . Largest 2 | 2 2 2 2 . . Hottest 60 | 60 60 40 40 . . Shots Fired 54 | 10 32 4 8 . . Gun 54 | 10 32 4 8 . . Cannon . | . . . . . . Launcher . | . . . . . . Special . | . . . . . . Kinetic 43 | 5 26 4 8 . . Thermal . | . . . . . . Explosive . | . . . . . . Electromagnetic 11 | 5 6 . . . . Robot Hit Streak 3 | 3 2 2 2 . . Robot Miss Streak 5 | 2 3 5 4 . . Penetration Max . | . . . . . . Secondary Targets . | . . . . . . Shots Hit Robots 21 | 6 10 2 2 . 1 Core Hits 10 | 2 5 1 2 . . Critical Kills . | . . . . . . Critical Parts Destroyed . | . . . . . . Critical Strikes 1 | 1 . . . . . Corrupt 1 | 1 . . . . . Melee Attacks 2 | . . . . . 2 Impact 2 | . . . . . 2 Slashing . | . . . . . . Piercing . | . . . . . . Sneak Attacks 1 | . . . . . 1 Combat Hostiles . | . . . . . . Follow-up Attacks . | . . . . . . Damage Inflicted 287 | 77 106 17 29 12 46 Guns 229 | 77 106 17 29 . . Cannons . | . . . . . . Explosions . | . . . . . . Melee 46 | . . . . . 46 Ramming 12 | . . . . 12 . Kinetic 187 | 35 106 17 29 . . Thermal . | . . . . . . Explosive . | . . . . . . Electromagnetic 42 | 42 . . . . . Impact 46 | . . . . . 46 Slashing . | . . . . . . Piercing . | . . . . . . Highest Corruption 1 | 1 1 . . . . Average Corruption 1 | 1 1 . . . . Corruption Purged . | . . . . . . Corruption Blocked . | . . . . . . Effects 1 | . 1 . . . . Data Loss (minor) 1 | . 1 . . . . Overload Shots . | . . . . . . Overflow Damage 24 | . . . . . 24 Projectiles . | . . . . . . Explosions . | . . . . . . Melee 24 | . . . . . 24 Knockbacks 1 | . . . . . 1 Impact 1 | . . . . . 1 Kinetic . | . . . . . . Secondary . | . . . . . . Self-Inflicted Damage 6 | . . . . 6 . Shots . | . . . . . . Rammed 2 | . . . . 2 . Targets Rammed 2 | . . . . 2 . Kicked . | . . . . . . Crushed . | . . . . . . Highest Temperature 8 | . 8 3 7 . . Average Temperature 4 | . 4 3 3 . . Received Heat Transfer 306 | . . 6 27 237 36 Siege Activations . | . . . . . . Robots Corrupted . | . . . . . . Combat Hostiles . | . . . . . . Parts Fried 2 | . . . . . 2 Impact Corruptions 2 | . . . . . 2 Robots Melted . | . . . . . . Combat Hostiles . | . . . . . . Parts Melted . | . . . . . . Heat Transferred . | . . . . . . Parts Sabotaged . | . . . . . . Parts Stolen . | . . . . . . Parts Stripped . | . . . . . . Power Chain Reactions . | . . . . . . Missiles Intercepted . | . . . . . . Alert | -11 -10 -9 -8 -8 -8 ------- Run | Scr Mat Mat Mat Gar Mat Peak Influence 296 | 10 166 123 38 120 296 Initial 69 | . 6 69 8 37 58 Average 63 | 3 107 39 12 39 139 Maximum Alert Level 1 | . . . . . 1 Low Security (%) 96 | 100 100 100 100 100 77 Level 1 3 | . . . . . 22 Level 2 . | . . . . . . Level 3 . | . . . . . . Level 4 . | . . . . . . Level 5 . | . . . . . . High Security . | . . . . . . Max Security . | . . . . . . Squads Dispatched 4 | . . 1 . . 3 Investigation . | . . . . . . Extermination . | . . . . . . Reinforcement 4 | . . 1 . . 3 Assault . | . . . . . . Garrison . | . . . . . . Intercept . | . . . . . . Searches Triggered . | . . . . . . Construction Impeded 1 | . . . . . 1 Haulers Reinforced . | . . . . . . Active Scanning Responses . | . . . . . . Cargo Convoy Interrupts . | . . . . . . Stealth | -11 -10 -9 -8 -8 -8 --------- Run | Scr Mat Mat Mat Gar Mat Distress Signals 6 | . 1 1 1 . 3 Communications Jammed . | . . . . . . Distress Signals . | . . . . . . Times Spotted 56 | . 10 9 8 13 16 Peak Tracking Total 14 | . 5 8 11 14 11 Tactical Retreats 11 | . 2 1 1 3 4 Traps | -11 -10 -9 -8 -8 -8 ------- Run | Scr Mat Mat Mat Gar Mat Traps Triggered 1 | . . . . 1 . Indirectly . | . . . . . . Trap Hack Attempts . | . . . . . . Triggered . | . . . . . . Disarmed . | . . . . . . Reprogrammed . | . . . . . . Reused . | . . . . . . Traps Extracted . | . . . . . . Installed . | . . . . . . Triggered . | . . . . . . Machines | -11 -10 -9 -8 -8 -8 ---------- Run | Scr Mat Mat Mat Gar Mat Machines Disabled . | . . . . . . Max in Single Turn . | . . . . . . Machines Sabotaged . | . . . . . . Garrisons Compromised . | . . . . . . Overloaded Fab Kills . | . . . . . . Hacking | -11 -10 -9 -8 -8 -8 --------- Run | Scr Mat Mat Mat Gar Mat Machines Accessed 11 | . 2 7 1 . 1 Terminals 10 | . 2 7 . . 1 Fabricators . | . . . . . . Repair Stations . | . . . . . . Recycling Units . | . . . . . . Scanalyzers . | . . . . . . Garrison Access 1 | . . . 1 . . Total Hacks 30 | . 4 21 1 . 4 Successful 12 | . 1 8 1 . 2 Failed 18 | . 3 13 . . 2 Catastrophic 4 | . 2 2 . . . Database Lockouts . | . . . . . . Manual . | . . . . . . Terminals 29 | . 4 21 . . 4 Fabricators . | . . . . . . Repair Stations . | . . . . . . Recycling Units . | . . . . . . Scanalyzers . | . . . . . . Garrison Access 1 | . . . 1 . . Terminal Hacks 11 | . 1 8 . . 2 Prototype ID Bank 1 | . . 1 . . . Level Access Points 1 | . 1 . . . . Branch Access Points 1 | . . 1 . . . Emergency Access Points 1 | . . . . . 1 Terminal Index 1 | . . 1 . . . Unreport Threat 2 | . . 2 . . . Recall Investigation 2 | . . 1 . . 1 Hauler Manifests 1 | . . 1 . . . Zone Layout 1 | . . 1 . . . Fabricator Hacks . | . . . . . . Repair Station Hacks . | . . . . . . Recycling Unit Hacks . | . . . . . . Scanalyzer . | . . . . . . Garrison Access Hacks 1 | . . . 1 . . Unlock Access 1 | . . . 1 . . Unauthorized Hacks . | . . . . . . Terminals . | . . . . . . Fabricators . | . . . . . . Repair Stations . | . . . . . . Recycling Units . | . . . . . . Scanalyzers . | . . . . . . Garrison Access . | . . . . . . Data Cores Recovered . | . . . . . . Used . | . . . . . . Hacking Detections 5 | . 1 4 . . . Full Trace Events 1 | . 1 . . . . Feedback Events . | . . . . . . Feedback Blocked . | . . . . . . Robot Schematics Acquired . | . . . . . . Robots Built . | . . . . . . Authchips . | . . . . . . Time . | . . . . . . Total Robot Build Rating . | . . . . . . Part Schematics Acquired . | . . . . . . Parts Built . | . . . . . . Authchips . | . . . . . . Time . | . . . . . . Total Part Build Rating . | . . . . . . Parts Repaired . | . . . . . . Time . | . . . . . . Parts Recycled . | . . . . . . Recycled Matter . | . . . . . . Retrieved Matter . | . . . . . . Retrieved Components . | . . . . . . Parts Scanalyzed . | . . . . . . Part Schematics Acquired . | . . . . . . Parts Damaged . | . . . . . . Bothacking | -11 -10 -9 -8 -8 -8 ------------ Run | Scr Mat Mat Mat Gar Mat Used RIF Installer 1 | . . . . 1 . Robots Hacked . | . . . . . . Non-combat . | . . . . . . Combat . | . . . . . . Robot Hacks Applied . | . . . . . . Relay Couplers Released . | . . . . . . Fabnet Peak Effective % . | . . . . . . Robots Rewired . | . . . . . . Allies Hacked . | . . . . . . Hacks Repelled . | . . . . . . Allies | -11 -10 -9 -8 -8 -8 -------- Run | Scr Mat Mat Mat Gar Mat Total Allies . | . . . . . . Largest Group . | . . . . . . Highest-Rated Group . | . . . . . . Highest-Rated Ally . | . . . . . . Total Orders . | . . . . . . Ally Attacks . | . . . . . . Total Damage . | . . . . . . Kills . | . . . . . . Allies Corrupted . | . . . . . . Allies Melted . | . . . . . . Intel | -11 -10 -9 -8 -8 -8 ------- Run | Scr Mat Mat Mat Gar Mat Robot Analysis Total . | . . . . . . Derelict Logs Recovered . | . . . . . . Drone Launches . | . . . . . . Drone Recoveries . | . . . . . . Exploration | -11 -10 -9 -8 -8 -8 ------------- Run | Scr Mat Mat Mat Gar Mat Turns Passed 981 | 79 179 355 93 104 171 Spaces Moved 1419 | 63 200 448 254 203 251 Core 391 | 9 . . . 131 251 Treads . | . . . . . . Legs . | . . . . . . Wheels 132 | 54 78 . . . . Hover . | . . . . . . Flight 896 | . 122 448 254 72 . Fastest Speed 31 | 50 37 34 31 31 50 Average Speed 42 | 75 53 34 31 45 50 Slowest Speed 100 | 80 80 34 31 100 50 Overloaded Moves . | . . . . . . Propulsion Burnouts . | . . . . . . Robots Hopped 13 | . 3 1 3 6 . Cave-ins Triggered . | . . . . . . Exploration Rate (%) 31 | 3 41 32 22 49 42 Regions Visited 5 Branch Regions . Pre-discovered Areas . | . . . . . . Known Exits Taken 2 | . 1 . 1 . . Unknown Exits Taken 2 | 1 . 1 . . . Scrap Searched . | . . . . . . Spaces Dug 1 | . . . . . 1 Terrain Destroyed 1 | . . . . . 1 Melee 1 | . . . . . 1 Projectile . | . . . . . . AOE . | . . . . . . Terrain Rammed . | . . . . . . Walls Destroyed . | . . . . . . Machines Disabled . | . . . . . . Actions | -11 -10 -9 -8 -8 -8 --------- Run | Scr Mat Mat Mat Gar Mat Total 1732 | 84 242 645 258 210 293 Wait 237 | . 9 192 . . 36 Move 1389 | 62 193 445 247 191 251 Hop 11 | . 3 1 3 4 . Pick Up 24 | 9 10 2 1 . 2 Fast Attach . | . . . . . . Attach 17 | 5 5 3 2 1 1 Detach 2 | . . . 1 1 . Swap 1 | 1 . . . . . Drop 11 | 2 6 . . 2 1 Fire 27 | 5 16 2 4 . . Melee 2 | . . . . . 2 Ram 2 | . . . . 2 . Kick . | . . . . . . Crush . | . . . . . . Escape Stasis 9 | . . . . 9 . Rewire . | . . . . . . Trap . | . . . . . . Miscellaneous . | . . . . . . Route ------- -11/Scrapyard -10/Materials (discovered 3 exits: *Mat x3) -9/Materials (discovered 5 exits: *Mat / Min x2 / Sto x2) -8/Materials -8/Garrison (discovered 2 exits: *Mat x2) -8/Materials History --------- Turn | Location | Event 4 | -11/Scrapyard | Discovered new exit (range 15) 80 | -11/Scrapyard | Entered Materials 174 | -10/Materials | Identified exit to Materials 259 | -10/Materials | Entered another Materials area 259 | -9/Materials | Evolved 2 slots: Propulsion x1, Utility x1 267 | -9/Materials | Identified exit to Mines 267 | -9/Materials | Identified exit to Storage 472 | -9/Materials | Build established: Scavenger-Mutant 596 | -9/Materials | Discovered new exit (range 14) 614 | -9/Materials | Entered another Materials area 614 | -8/Materials | Evolved 2 slots: Propulsion x1, Utility x1 707 | -8/Materials | Identified exit to Garrison 707 | -8/Materials | Entered Garrison 735 | -8/Garrison | Triggered checkpoint 751 | -8/Garrison | Discovered new exit (range 14) 771 | -8/Garrison | Core integrity fell below 50% 800 | -8/Garrison | Discovered new exit (range 10) 802 | -8/Garrison | Lost 8 parts (4n3u1w) 807 | -8/Garrison | Installed Relay Interface Framework 809 | -8/Garrison | Core integrity fell below 20% 811 | -8/Garrison | Entered Materials 982 | -8/Materials | Destroyed by Y-45 Defender with Beam Rifle Last Messages --------------- U-05 Engineer knocked back. ALERT: Construction progress impeded, dispatching reinforcements to local area. U-05 Engineer system terminally corrupted. Welding Torch fried. Wheel fried. Acquired 10 matter. K-01 Serf collects debris. K-01 Serf destroyed. ALERT: Hostiles spotted, dispatching reinforcements to Terminal M006. Slug penetrates Wall. Connecting with Terminal... Current location identified: Materials >>Access(Emergency) Found 1 emergency access door: (23,52) Map updated. >>Recall(Investigation) Establishing remote squad link... No tasked investigation squads found. Map ----- +----------------------------------------------------+ | ???????????????????????# #???????????????? | | ???????????????????????# ] #???????????????? | | ???????????????????????# #???????????????? | | ???????????????????????##+########???????????????? | | ????????????????????????# #??????????????????????? | | ????????????????????????# #??????????????????????? | | ????????????????????????# #??????????????????????? | | ????????????????????????# #########??????????????? | | ????????????????????????# ## #????????????? | | ????????????????????????# ##! """ #????????????? | | ???????????????????????## ## """ #???########## | | ???????????????????????# + """ #???# # [ | | ???????????????????????# # #???# # | | ???????????????????????# # """ #???# # | | ???????????????????????# + """ #???# # | | ???????????????????????# # """ #????? # | | ???????????????????????# # #?????? #? | | ???????????????????????# #################+#+### | | ???????????????????????# | | ???????????????????????# | | ???????????????????????# | | ???????????????????????# #"T"################### | | ???????????????????????# #####??????????#?????? | | ???????????????????????# #?????????? * ? ???# | | ???????????????????????# #???????? ???#! | | ???????????????????????# @ #???????? "????# | | ???????????????????????# #???????? "????#] | | ???????????######??????# #?????????"""" ?????# | | ??????????##!!!!##?????+ #?????????"""" ?????##+ | | ??????????#! !#?????# #??????????"""???????# | | ??????????#! !#?????# #?????????? ???????# | | ?????????## ####### Y############+######### | | ?????????# | | ?????????# ##### | | ?????????# w #???# | | ?????????+ ##########Y############# ##???# | | ?????????# #??????? Y ??????????# #????# ## | | ?????????# #?????## ????????# #???? ## | | ?????????# #??## ## """ """ ??????# #???##### | | ?????????# #? !! # """ """ #?????# #???????# | | ?????????# #! ! + """ """ #?????# #???????# | | ?????????# # # #?????# #???????# | | ???????? / + " "" # ??????# #???????# | | ?????? # # "R"" # """T""" ??????# ######### | | ???? # # """ #?????####??????# | | ??# ?# #?######???????????????# #########+ | | ??######?# #? ???????????????# #??????# | | ?????????# # """ ""???????????????# #??????# | | ?????????# # """ ""???????????????? #??????# | | ?????????+ + """ ""???????????????? ???????# | +----------------------------------------------------+ Best States ------------- Heat Dissipation 31 Energy Generation 12 Energy Capacity 265 Matter Stores 300 Matter Capacity 300 Sight Range 16 Robot Scan Range 14 Terrain Scan Range 14 Terrain Scan Density 10 Evasion (%) 63 Item Schematics ----------------- None Robot Schematics ------------------ None Fabricated ------------ Nothing Alien Tech Used ----------------- None Achievements -------------- None Challenges ------------ None Game ------ Seed ThrowingDisposableCleaver Manual? 0 Play Time 00:16:53 Cumulative 48.0 hours Start 2022.12.17 @ 16:22:53 End 2022.12.17 @ 17:00:51 Sessions 1 Manual Loads 0 Difficulty Rogue Special Mode None Game No. 73 Rogue 73 Adventurer 0 Explorer 0 Win Type - Total 1 Types 1/0/0/0/0/0/0/0/0 Lore% 33 Gallery% 42 Achievement% 35 Wizard Run 0 Options --------- ASCII 0 Keyboard 0 Movement Arrows Keybinds 0 Fullscreen 2 Font 16/SmallcapsGlow Map View 76x50 Tactical HUD 0 Map Filters NONE Filters NONE Steam 1 RUN: c6fe35a9-9d6f-48a9-960b-7eb25ba0d445